OrganisationURI,OrganisationLabel,OrganisationalUnit,TransactionNumber,Invoice Ref.,BeneficiaryName,Expense Type,Purpose,Payment Date,Amount
http://statistics.data.gov.uk/id/local-authority-district/23UB,Cheltenham Borough Council,Air Quality,14058519,8479,Air Monitors Limited,R4003-REG012,Tools & Equipment - R & M,02/02/2018,"17,337.00 "
http://statistics.data.gov.uk/id/local-authority-district/23UB,Cheltenham Borough Council,"Cemetery, Crematorium and Churchyards",14059419,C4699,Alexander Burn Limited,R4429-CCM001,Services - other fees,28/02/2018,"1,600.00 "
http://statistics.data.gov.uk/id/local-authority-district/23UB,Cheltenham Borough Council,"Cemetery, Crematorium and Churchyards",14059420,C4700,Alexander Burn Limited,R4429-CCM001,Services - other fees,28/02/2018,"4,300.00 "
http://statistics.data.gov.uk/id/local-authority-district/23UB,Cheltenham Borough Council,Cemetery & Crematorium Repairs & Maintenance,14058368,PSI114243,AllCoopers Limited,R2705-CCM111,Security Systems,09/02/2018,"2,412.84 "
http://statistics.data.gov.uk/id/local-authority-district/23UB,Cheltenham Borough Council,Sports & Play Hub Phase 1,14058507,4588,Alliance Leisure Services Limited,C1107-CAP127,Building Works,09/02/2018,"89,863.50 "
http://statistics.data.gov.uk/id/local-authority-district/23UB,Cheltenham Borough Council,Sports & Play Hub Phase 1,14058760,4638,Alliance Leisure Services Limited,C1107-CAP127,Building Works,16/02/2018,"11,862.51 "
http://statistics.data.gov.uk/id/local-authority-district/23UB,Cheltenham Borough Council,Joint Core Strategy,14058793,I18010110A,Alpha Papa Tango Limited,R4400-PLP101,Services - Professional Fees,16/02/2018,"2,750.00 "
http://statistics.data.gov.uk/id/local-authority-district/23UB,Cheltenham Borough Council,Community Welfare Grants,14058623,16035,Altitude Scaffolding Access Limited,R4001-GBD001,Tools & Equipment - Hire,09/02/2018,550.00 
http://statistics.data.gov.uk/id/local-authority-district/23UB,Cheltenham Borough Council,Public Conveniences,14057483,597736,Andy Loos Limited,R4401-REG019,Services - Fees and Charges,02/02/2018,"1,395.00 "
http://statistics.data.gov.uk/id/local-authority-district/23UB,Cheltenham Borough Council,Development Control - Applications,14058491,12323,Artful Limited,R4317-DEV001,Non Staff Advertising,02/02/2018,"2,579.20 "
http://statistics.data.gov.uk/id/local-authority-district/23UB,Cheltenham Borough Council,Development Control - Applications,14058996,12344,Artful Limited,R4317-DEV001,Non Staff Advertising,23/02/2018,"2,160.09 "
http://statistics.data.gov.uk/id/local-authority-district/23UB,Cheltenham Borough Council,Cemetery & Crematorium Repairs & Maintenance,14058685,ATI050118,ATI Environment UK Limited,R2008-CCM111,R & M of Build - Reactive Repairs,23/02/2018,"1,116.00 "
http://statistics.data.gov.uk/id/local-authority-district/23UB,Cheltenham Borough Council,Cemetery & Crematorium Repairs & Maintenance,14058684,ATI060118,ATI Environment UK Limited,R2004-CCM111,R & M of Build Programmed,23/02/2018,"13,705.00 "
http://statistics.data.gov.uk/id/local-authority-district/23UB,Cheltenham Borough Council,Cemetery & Crematorium Repairs & Maintenance,14058680,ATI080118,ATI Environment UK Limited,R2008-CCM111,R & M of Build - Reactive Repairs,23/02/2018,884.00 
http://statistics.data.gov.uk/id/local-authority-district/23UB,Cheltenham Borough Council,Cemetery & Crematorium Repairs & Maintenance,14058681,ATI351017,ATI Environment UK Limited,R2083-CCM111,R&M of Build - Routine,23/02/2018,"13,100.00 "
http://statistics.data.gov.uk/id/local-authority-district/23UB,Cheltenham Borough Council,Joint Core Strategy,14058795,INV:316123,Attwaters Jameson Hill Solicitors,R4400-PLP101,Services - Professional Fees,16/02/2018,600.00 
http://statistics.data.gov.uk/id/local-authority-district/23UB,Cheltenham Borough Council,Development costs - Monkscroft,14058941,11012,AVM International Limited,C1006-CAH061,Removal Costs,23/02/2018,567.00 
http://statistics.data.gov.uk/id/local-authority-district/23UB,Cheltenham Borough Council,Development Costs - Hester's Way Road,14058363,BH: 51316,Baily Garner LLP,C1111-CAH057,Clerk of Works,23/02/2018,641.97 
http://statistics.data.gov.uk/id/local-authority-district/23UB,Cheltenham Borough Council,Trees,14058511,119383,Barcham Trees plc,R2070-PLP006,Tree Work,02/02/2018,"2,803.00 "
http://statistics.data.gov.uk/id/local-authority-district/23UB,Cheltenham Borough Council,External Improvements,14058637,P4005/5857,Bersche-Rolt Limited,C1107-CAH003,Building Works,09/02/2018,"17,305.94 "
http://statistics.data.gov.uk/id/local-authority-district/23UB,Cheltenham Borough Council,External Improvements,14058637,P4005/5857,Bersche-Rolt Limited,C1107-CAH003,Building Works,09/02/2018,"-17,305.94 "
http://statistics.data.gov.uk/id/local-authority-district/23UB,Cheltenham Borough Council,External Improvements,14058637,P4005/5857,Bersche-Rolt Limited,C1107-CAH003,Building Works,09/02/2018,"17,305.94 "
http://statistics.data.gov.uk/id/local-authority-district/23UB,Cheltenham Borough Council,Car Park Income Collection,14058679,58474,Bristol Street Motors,R4000-CPK002,Equipment Purchase,16/02/2018,"11,047.50 "
http://statistics.data.gov.uk/id/local-authority-district/23UB,Cheltenham Borough Council,Property Services,14058390,IN-77384-1,Building Recruitment Company Limited (BRC),R1100-SUP025,Agency Staff,09/02/2018,945.92 
http://statistics.data.gov.uk/id/local-authority-district/23UB,Cheltenham Borough Council,Property Services,14058528,IN-77486-1,Building Recruitment Company Limited (BRC),R1100-SUP025,Agency Staff,09/02/2018,576.42 
http://statistics.data.gov.uk/id/local-authority-district/23UB,Cheltenham Borough Council,Property Services,14058728,IN-77728-1,Building Recruitment Company Limited (BRC),R1100-SUP025,Agency Staff,09/02/2018,945.92 
http://statistics.data.gov.uk/id/local-authority-district/23UB,Cheltenham Borough Council,Property Services,14058897,IN-77933-1,Building Recruitment Company Limited (BRC),R1100-SUP025,Agency Staff,23/02/2018,886.80 
http://statistics.data.gov.uk/id/local-authority-district/23UB,Cheltenham Borough Council,"Cemetery, Crematorium and Churchyards",14058240,5495,C Mawdsley t/a Arbor Tree Care,R2070-CCM001,Tree Work,02/02/2018,"5,400.00 "
http://statistics.data.gov.uk/id/local-authority-district/23UB,Cheltenham Borough Council,Cheltenham Business Improvement District (BID) Levy,14058445,BID INV REFUND,Canada Life Limited,R8914-HLD160,NNDR refunds,09/02/2018,650.09 
http://statistics.data.gov.uk/id/local-authority-district/23UB,Cheltenham Borough Council,Planning Policy,14058265,65030,Carrington West Limited,R1100-PLP001,Agency Staff,09/02/2018,"1,184.00 "
http://statistics.data.gov.uk/id/local-authority-district/23UB,Cheltenham Borough Council,Planning Policy,14058346,65408,Carrington West Limited,R1100-PLP001,Agency Staff,09/02/2018,"1,184.00 "
http://statistics.data.gov.uk/id/local-authority-district/23UB,Cheltenham Borough Council,Planning Policy,14058535,65899,Carrington West Limited,R1100-PLP001,Agency Staff,09/02/2018,"1,184.00 "
http://statistics.data.gov.uk/id/local-authority-district/23UB,Cheltenham Borough Council,Planning Policy,14058752,66309,Carrington West Limited,R1100-PLP001,Agency Staff,16/02/2018,"1,184.00 "
http://statistics.data.gov.uk/id/local-authority-district/23UB,Cheltenham Borough Council,Planning Policy,14058909,66766,Carrington West Limited,R1100-PLP001,Agency Staff,23/02/2018,"1,184.00 "
http://statistics.data.gov.uk/id/local-authority-district/23UB,Cheltenham Borough Council,Xmas in Cheltenham,14058540,CBID0042,Cheltenham Bid Limited,R4400-ECD101,Services - Professional Fees,09/02/2018,"34,675.00 "
http://statistics.data.gov.uk/id/local-authority-district/23UB,Cheltenham Borough Council,War Memorials,14058846,1,Cheltenham Local History Society,R6280-CUL002,Grants,23/02/2018,600.00 
http://statistics.data.gov.uk/id/local-authority-district/23UB,Cheltenham Borough Council,Income and Expenditure on Investment Properties and Changes in Their Fair Value,14058534,19837,Cheltenham Mots Ltd,R2083-FIE040,R&M of Build - Routine,09/02/2018,675.00 
http://statistics.data.gov.uk/id/local-authority-district/23UB,Cheltenham Borough Council,Oakley Resource Centre,14058510,117470,Chris Lewis Fire & Security,R2705-COM101,Security Systems,09/02/2018,"2,242.00 "
http://statistics.data.gov.uk/id/local-authority-district/23UB,Cheltenham Borough Council,Cashiers,14058981,C/PY162113,Civica UK Limited,R4534-SUP014,IT - Maint Agreements,23/02/2018,990.00 
http://statistics.data.gov.uk/id/local-authority-district/23UB,Cheltenham Borough Council,Local Housing Allowance,14058759,C/RB161800,Civica UK Limited,R1652-HBP003,Training Fees (External),16/02/2018,790.00 
http://statistics.data.gov.uk/id/local-authority-district/23UB,Cheltenham Borough Council,Revenues & Benefits Overheads,14058799,C/RB161844,Civica UK Limited,R4531-LTC101,IT - Purchase of Software,16/02/2018,"5,260.00 "
http://statistics.data.gov.uk/id/local-authority-district/23UB,Cheltenham Borough Council,Recreation Centre Repairs & Maintenance,14058744,301267/1/2018,Combined Power (South) Limited T/A Centrica Business Solutions,R2100-REC111,Electricity,09/02/2018,"3,031.23 "
http://statistics.data.gov.uk/id/local-authority-district/23UB,Cheltenham Borough Council,Printing Services,14058967,SI1733737,Commercial Limited (Office Stationery only),R4306-SUP022,Photocopier Charges - Consumables,23/02/2018,519.00 
http://statistics.data.gov.uk/id/local-authority-district/23UB,Cheltenham Borough Council,Income and Expenditure on Investment Properties and Changes in Their Fair Value,14058639,1592/2018,Corinium Fire Safety Consultancy Limited,R2004-FIE040,R & M of Build Programmed,09/02/2018,"1,390.00 "
http://statistics.data.gov.uk/id/local-authority-district/23UB,Cheltenham Borough Council,Treasury Management,14058843,106692,Corpstar Investments Limited T/A Logotech Systems,R4400-COR006,Services - Professional Fees,23/02/2018,"2,100.00 "
http://statistics.data.gov.uk/id/local-authority-district/23UB,Cheltenham Borough Council,Flood Risk Management,14058621,C29898,Cotswold Drain Service Limited,R5001-FRM101,TPP - Major External Contractors,16/02/2018,520.00 
http://statistics.data.gov.uk/id/local-authority-district/23UB,Cheltenham Borough Council,Urban Design,14058671,C29929,Cotswold Drain Service Limited,R4000-URB101,Equipment Purchase,16/02/2018,940.00 
http://statistics.data.gov.uk/id/local-authority-district/23UB,Cheltenham Borough Council,Urban Design,14058671,C29929,Cotswold Drain Service Limited,R4000-URB101,Equipment Purchase,16/02/2018,-940.00 
http://statistics.data.gov.uk/id/local-authority-district/23UB,Cheltenham Borough Council,Urban Design,14058671,C29929,Cotswold Drain Service Limited,R4000-URB101,Equipment Purchase,16/02/2018,940.00 
http://statistics.data.gov.uk/id/local-authority-district/23UB,Cheltenham Borough Council,Cheltenham Depot,14058552,depot/003,County Drain Services,R2043-ADB103,R & M of Build Drain Cleaning,09/02/2018,"1,771.00 "
http://statistics.data.gov.uk/id/local-authority-district/23UB,Cheltenham Borough Council,Cheltenham Depot,14058740,interceptors depot,County Drain Services,R2043-ADB103,R & M of Build Drain Cleaning,09/02/2018,"1,343.00 "
http://statistics.data.gov.uk/id/local-authority-district/23UB,Cheltenham Borough Council,Community Development,14058477,311217,REDACTED,R6280-COM001,Grants,02/02/2018,"1,064.00 "
http://statistics.data.gov.uk/id/local-authority-district/23UB,Cheltenham Borough Council,Development Control - Applications,14058340,7402413545,Dell Corporation Limited,R4000-DEV001,Equipment Purchase,02/02/2018,667.32 
http://statistics.data.gov.uk/id/local-authority-district/23UB,Cheltenham Borough Council,Income and Expenditure on Investment Properties and Changes in Their Fair Value,14058144,277976,Devonshires Solicitors LLP,R4400-FIE040,Services - Professional Fees,02/02/2018,961.00 
http://statistics.data.gov.uk/id/local-authority-district/23UB,Cheltenham Borough Council,Income and Expenditure on Investment Properties and Changes in Their Fair Value,14058292,180116,Elmbridge Carpentry,R2004-FIE040,R & M of Build Programmed,02/02/2018,765.00 
http://statistics.data.gov.uk/id/local-authority-district/23UB,Cheltenham Borough Council,Parks & Gardens Operations,14057981,IGBA/2165/02,Envex Contractors Limited,R2075-OPS001,Grounds Maintenance - Contract,02/02/2018,"1,144.17 "
http://statistics.data.gov.uk/id/local-authority-district/23UB,Cheltenham Borough Council,Parks & Gardens Operations,14057981,IGBA/2165/02,Envex Contractors Limited,R2075-OPS001,Grounds Maintenance - Contract,02/02/2018,"-1,144.17 "
http://statistics.data.gov.uk/id/local-authority-district/23UB,Cheltenham Borough Council,Parks & Gardens Operations,14057981,IGBA/2165/02,Envex Contractors Limited,R2075-OPS001,Grounds Maintenance - Contract,02/02/2018,"1,144.17 "
http://statistics.data.gov.uk/id/local-authority-district/23UB,Cheltenham Borough Council,Asbestos Management,14058482,6661,Environmental Management Solutions Limited,C1107-CAH012,Building Works,02/02/2018,"-21,312.50 "
http://statistics.data.gov.uk/id/local-authority-district/23UB,Cheltenham Borough Council,Asbestos Management,14058482,6661,Environmental Management Solutions Limited,C1107-CAH012,Building Works,02/02/2018,"21,312.50 "
http://statistics.data.gov.uk/id/local-authority-district/23UB,Cheltenham Borough Council,Asbestos Management,14058482,6661,Environmental Management Solutions Limited,C1107-CAH012,Building Works,02/02/2018,"21,312.50 "
http://statistics.data.gov.uk/id/local-authority-district/23UB,Cheltenham Borough Council,Recreation Centre Repairs & Maintenance,14058404,1049/404,ESG Pool Ventilation Limited,R2080-REC111,Mechanical Services,09/02/2018,679.00 
http://statistics.data.gov.uk/id/local-authority-district/23UB,Cheltenham Borough Council,Recreation Centre Repairs & Maintenance,14058371,11710,F T Leisure Limited,R2083-REC111,R&M of Build - Routine,02/02/2018,"1,200.00 "
http://statistics.data.gov.uk/id/local-authority-district/23UB,Cheltenham Borough Council,Trees,14058504,1661,Fairford Tree Services,R2070-PLP006,Tree Work,02/02/2018,"1,490.00 "
http://statistics.data.gov.uk/id/local-authority-district/23UB,Cheltenham Borough Council,Human Resources,14058366,17-1031,Flu Xpress Limited,R4401-SUP003,Services - Fees and Charges,09/02/2018,"1,134.95 "
http://statistics.data.gov.uk/id/local-authority-district/23UB,Cheltenham Borough Council,Town Hall Redevelopment Scheme,14058336,1361,Focus Consultants 2010 LLP,C1105-CAP126,Design Services,02/02/2018,"5,000.00 "
http://statistics.data.gov.uk/id/local-authority-district/23UB,Cheltenham Borough Council,Community Welfare Grants,14058430,Com Pride 240118,Friends of Hatherley Park,R6280-GBD001,Grants,02/02/2018,939.00 
http://statistics.data.gov.uk/id/local-authority-district/23UB,Cheltenham Borough Council,Trees,14058494,279,Gaskins Treework Specialists,R2070-PLP006,Tree Work,02/02/2018,900.00 
http://statistics.data.gov.uk/id/local-authority-district/23UB,Cheltenham Borough Council,Supervision and Management,14058496,280,Gaskins Treework Specialists,R2070-HRA110,Tree Work,02/02/2018,550.00 
http://statistics.data.gov.uk/id/local-authority-district/23UB,Cheltenham Borough Council,Trees,14058746,281,Gaskins Treework Specialists,R2070-PLP006,Tree Work,16/02/2018,"4,900.00 "
http://statistics.data.gov.uk/id/local-authority-district/23UB,Cheltenham Borough Council,Emergency Planning,14058721,1800473384,Gloucestershire County Council,R4400-EMP001,Services - Professional Fees,16/02/2018,"14,619.00 "
http://statistics.data.gov.uk/id/local-authority-district/23UB,Cheltenham Borough Council,Land Charges,14058244,1800473520,Gloucestershire County Council,R4401-BUC004,Services - Fees and Charges,09/02/2018,"1,780.00 "
http://statistics.data.gov.uk/id/local-authority-district/23UB,Cheltenham Borough Council,Land Charges,14058243,1800473571,Gloucestershire County Council,R4401-BUC004,Services - Fees and Charges,09/02/2018,"6,392.60 "
http://statistics.data.gov.uk/id/local-authority-district/23UB,Cheltenham Borough Council,Household Waste,14058775,1800477059,Gloucestershire County Council,R4401-WST001,Services - Fees and Charges,16/02/2018,"7,761.85 "
http://statistics.data.gov.uk/id/local-authority-district/23UB,Cheltenham Borough Council,Pensions Backfunding,14058834,800008113,GLOUCESTERSHIRE COUNTY COUNCIL (LGPS ONLY),R1301-SUP038,Enhanced Pension,16/02/2018,"16,989.38 "
http://statistics.data.gov.uk/id/local-authority-district/23UB,Cheltenham Borough Council,World War 1 Commemoration Projects,14057936,6498,Gloucestershire Everyman Theatre Co Limited,R2078-CUL003,R&M of Build - external structures,02/02/2018,"10,150.00 "
http://statistics.data.gov.uk/id/local-authority-district/23UB,Cheltenham Borough Council,Community Welfare Grants,14058426,4779,Gloucestershire Rural Community Council,R6280-GBD001,Grants,02/02/2018,"17,000.00 "
http://statistics.data.gov.uk/id/local-authority-district/23UB,Cheltenham Borough Council,Sheltered Housing,14058986,67367,Granley Blinds Limited,C1107-CAH014,Building Works,23/02/2018,565.00 
http://statistics.data.gov.uk/id/local-authority-district/23UB,Cheltenham Borough Council,Corporate Management,14058730,8781758,Grant Thornton UK LLP,R4430-COR001,Audit Fees,09/02/2018,"2,100.00 "
http://statistics.data.gov.uk/id/local-authority-district/23UB,Cheltenham Borough Council,Gloucestershire Airport,14058447,1115503,Guardian News & Media Ltd,R1700-AIR101,Staff Advertising Costs,16/02/2018,"1,400.00 "
http://statistics.data.gov.uk/id/local-authority-district/23UB,Cheltenham Borough Council,Big Local Project,14058658,54458,HAGS-SMP Limited,R6280-HLD131,Grants,16/02/2018,"3,194.90 "
http://statistics.data.gov.uk/id/local-authority-district/23UB,Cheltenham Borough Council,Registration of Electors,14058952,10835,Halarose Limited,R4531-ELE001,IT - Purchase of Software,23/02/2018,531.91 
http://statistics.data.gov.uk/id/local-authority-district/23UB,Cheltenham Borough Council,District Elections,14058952,10835,Halarose Limited,R4531-ELE002,IT - Purchase of Software,23/02/2018,531.91 
http://statistics.data.gov.uk/id/local-authority-district/23UB,Cheltenham Borough Council,Development Control - Applications,14058341,50121461,Haymarket Media Group Ltd,R4401-DEV001,Services - Fees and Charges,16/02/2018,"1,745.00 "
http://statistics.data.gov.uk/id/local-authority-district/23UB,Cheltenham Borough Council,Development Control - Applications,14058342,50121510,Haymarket Media Group Ltd,R4401-DEV001,Services - Fees and Charges,09/02/2018,"1,385.00 "
http://statistics.data.gov.uk/id/local-authority-district/23UB,Cheltenham Borough Council,Reception/Customer Services,14058944,SIAL/00028329,Herefordshire Housing Limited,R4401-SUP008,Services - Fees and Charges,23/02/2018,"1,800.00 "
http://statistics.data.gov.uk/id/local-authority-district/23UB,Cheltenham Borough Council,General Fund Balance Sheet,14058722,CISDEDUCT0601-050218,HMRC (CBC - CIS),B6220-BAL100,CIS Deductions Control (reallocated),09/02/2018,"6,943.26 "
http://statistics.data.gov.uk/id/local-authority-district/23UB,Cheltenham Borough Council,Training & Development,14058617,214PS00149425 APLEVY JAN 18,HMRC (CBC - PAYE & NIC),R1399-SUP020,Other employee expenses,23/02/2018,"1,391.00 "
http://statistics.data.gov.uk/id/local-authority-district/23UB,Cheltenham Borough Council,Parks & Gardens Operations,14058755,17/18/147,Home Flair Catering,R2075-OPS001,Grounds Maintenance - Contract,16/02/2018,532.69 
http://statistics.data.gov.uk/id/local-authority-district/23UB,Cheltenham Borough Council,Repairs and Maintenance,14058672,150361AA9,Ian Williams Limited,R2060-HRA100,R & M of Build Cyclical Painting Communal Areas,09/02/2018,"29,045.08 "
http://statistics.data.gov.uk/id/local-authority-district/23UB,Cheltenham Borough Council,Repairs and Maintenance,14058672,150361AA9,Ian Williams Limited,R2060-HRA100,R & M of Build Cyclical Painting Communal Areas,09/02/2018,"-29,045.08 "
http://statistics.data.gov.uk/id/local-authority-district/23UB,Cheltenham Borough Council,Repairs and Maintenance,14058672,150361AA9,Ian Williams Limited,R2060-HRA100,R & M of Build Cyclical Painting Communal Areas,09/02/2018,"29,045.08 "
http://statistics.data.gov.uk/id/local-authority-district/23UB,Cheltenham Borough Council,Regulatory & Environmental Services Transformation,14058675,7019577,Idox Software Limited,R4401-SUP140,Services - Fees and Charges,16/02/2018,"5,450.00 "
http://statistics.data.gov.uk/id/local-authority-district/23UB,Cheltenham Borough Council,Parks & Gardens Operations,14058541,3822,Illman Young Landscape Design Limited,R2075-OPS001,Grounds Maintenance - Contract,09/02/2018,"1,900.00 "
http://statistics.data.gov.uk/id/local-authority-district/23UB,Cheltenham Borough Council,Shopmobility,14058328,29835712,Independent Commercial Broking Group Limited t/a ICB Group,R2801-PUT102,Insurances - Property All Risks,02/02/2018,"1,490.72 "
http://statistics.data.gov.uk/id/local-authority-district/23UB,Cheltenham Borough Council,"Cemetery, Crematorium and Churchyards",14058513,9617,Institute of Cemetery and Crematorium  Management (ICCM),R1652-CCM001,Training Fees (External),02/02/2018,502.00 
http://statistics.data.gov.uk/id/local-authority-district/23UB,Cheltenham Borough Council,Development costs - Garage Sites 2c,14058241,008 IN023155,J Harper & Sons (Leominster) Limited,C1107-CAH055,Building Works,02/02/2018,"74,586.47 "
http://statistics.data.gov.uk/id/local-authority-district/23UB,Cheltenham Borough Council,Development costs - Garage Sites 2c,14058241,008 IN023155,J Harper & Sons (Leominster) Limited,C1107-CAH055,Building Works,02/02/2018,"-74,586.47 "
http://statistics.data.gov.uk/id/local-authority-district/23UB,Cheltenham Borough Council,Development costs - Garage Sites 2c,14058241,008 IN023155,J Harper & Sons (Leominster) Limited,C1107-CAH055,Building Works,02/02/2018,"74,586.47 "
http://statistics.data.gov.uk/id/local-authority-district/23UB,Cheltenham Borough Council,Development costs - Garage Sites 2c,14058739,010 IN023182,J Harper & Sons (Leominster) Limited,C1107-CAH055,Building Works,23/02/2018,769.40 
http://statistics.data.gov.uk/id/local-authority-district/23UB,Cheltenham Borough Council,Development costs - Garage Sites 2c,14058739,010 IN023182,J Harper & Sons (Leominster) Limited,C1107-CAH055,Building Works,23/02/2018,-769.40 
http://statistics.data.gov.uk/id/local-authority-district/23UB,Cheltenham Borough Council,Development costs - Garage Sites 2c,14058739,010 IN023182,J Harper & Sons (Leominster) Limited,C1107-CAH055,Building Works,23/02/2018,769.40 
http://statistics.data.gov.uk/id/local-authority-district/23UB,Cheltenham Borough Council,Sports & Open Spaces Operations,14058678,18/001,REDACTED (Farmer),R2071-OPS002,Open Spaces and Grassed Areas,16/02/2018,"2,500.00 "
http://statistics.data.gov.uk/id/local-authority-district/23UB,Cheltenham Borough Council,Sports & Open Spaces Operations,14058811,18/002,REDACTED (Farmer),R2071-OPS002,Open Spaces and Grassed Areas,16/02/2018,"1,250.00 "
http://statistics.data.gov.uk/id/local-authority-district/23UB,Cheltenham Borough Council,Parks & Gardens Operations,14058290,2108a,REDACTED,R2500-OPS001,Fixtures and Fittings - Purchases,02/02/2018,625.00 
http://statistics.data.gov.uk/id/local-authority-district/23UB,Cheltenham Borough Council,Parks & Gardens Operations,14058290,2108a,REDACTED,R2500-OPS001,Fixtures and Fittings - Purchases,02/02/2018,525.00 
http://statistics.data.gov.uk/id/local-authority-district/23UB,Cheltenham Borough Council,Cheltenham Depot,14058411,INV-1354,JS Facilities Ltd,R2705-ADB103,Security Systems,23/02/2018,672.00 
http://statistics.data.gov.uk/id/local-authority-district/23UB,Cheltenham Borough Council,Parks & Gardens Operations,14058512,114056,Keep Britain Tidy,R2075-OPS001,Grounds Maintenance - Contract,02/02/2018,"2,072.00 "
http://statistics.data.gov.uk/id/local-authority-district/23UB,Cheltenham Borough Council,Regulatory & Environmental Services Transformation,14058792,CBC21,REDACTED,R4400-SUP140,Services - Professional Fees,23/02/2018,"3,611.96 "
http://statistics.data.gov.uk/id/local-authority-district/23UB,Cheltenham Borough Council,Pest Control,14058483,SI02-0173100,Killgerm,R4401-REG018,Services - Fees and Charges,02/02/2018,505.08 
http://statistics.data.gov.uk/id/local-authority-district/23UB,Cheltenham Borough Council,ICT,14058798,16001342,LinchPin Networks Limited,R4548-SUP005,IT - Cabling and Network,16/02/2018,643.75 
http://statistics.data.gov.uk/id/local-authority-district/23UB,Cheltenham Borough Council,ICT,14058844,16001344,LinchPin Networks Limited,R4548-SUP005,IT - Cabling and Network,16/02/2018,"1,599.50 "
http://statistics.data.gov.uk/id/local-authority-district/23UB,Cheltenham Borough Council,Treasury Management,14058725,1002779201801000,Martin Brokers Group Limited,R4447-COR006,Brokerage Fees,09/02/2018,594.52 
http://statistics.data.gov.uk/id/local-authority-district/23UB,Cheltenham Borough Council,Pittville Pump Room Repairs & Maintenance,14058373,13027,Maylarch Environmental Limited,R2004-CUL113,R & M of Build Programmed,02/02/2018,"1,870.00 "
http://statistics.data.gov.uk/id/local-authority-district/23UB,Cheltenham Borough Council,Allotments,14058813,3308,MCPC Systems (UK) Limited,R4531-OPS004,IT - Purchase of Software,23/02/2018,540.00 
http://statistics.data.gov.uk/id/local-authority-district/23UB,Cheltenham Borough Council,Disabled Facility Grants,14058663,REDACTED,Mills Mobility Aids,C5000-CAP221,Grants,09/02/2018,"1,795.00 "
http://statistics.data.gov.uk/id/local-authority-district/23UB,Cheltenham Borough Council,Property Services,14058405,19398,MMP Consultancy Limited,R1100-SUP025,Agency Staff,09/02/2018,906.50 
http://statistics.data.gov.uk/id/local-authority-district/23UB,Cheltenham Borough Council,Property Services,14058256,21501,MMP Consultancy Limited,R1100-SUP025,Agency Staff,02/02/2018,906.50 
http://statistics.data.gov.uk/id/local-authority-district/23UB,Cheltenham Borough Council,Property Services,14058324,21674,MMP Consultancy Limited,R1100-SUP025,Agency Staff,02/02/2018,906.50 
http://statistics.data.gov.uk/id/local-authority-district/23UB,Cheltenham Borough Council,Property Services,14058743,22062,MMP Consultancy Limited,R1100-SUP025,Agency Staff,09/02/2018,904.46 
http://statistics.data.gov.uk/id/local-authority-district/23UB,Cheltenham Borough Council,Property Services,14058742,22063,MMP Consultancy Limited,R1100-SUP025,Agency Staff,09/02/2018,906.50 
http://statistics.data.gov.uk/id/local-authority-district/23UB,Cheltenham Borough Council,Repairs and Maintenance,14058805,33597,Morgan Lambert Limited,R2040-HRA100,R & M of Build Central Heating,16/02/2018,"1,540.00 "
http://statistics.data.gov.uk/id/local-authority-district/23UB,Cheltenham Borough Council,"Cemetery, Crematorium and Churchyards",14058520,260118,REDACTED,R4401-CCM001,Services - Fees and Charges,02/02/2018,806.62 
http://statistics.data.gov.uk/id/local-authority-district/23UB,Cheltenham Borough Council,Window & Door Renewals,14058624,18010183,Nationwide Windows Limited,C1107-CAH017,Building Works,09/02/2018,"75,733.49 "
http://statistics.data.gov.uk/id/local-authority-district/23UB,Cheltenham Borough Council,Window & Door Renewals,14058624,18010183,Nationwide Windows Limited,C1107-CAH017,Building Works,09/02/2018,"-75,733.49 "
http://statistics.data.gov.uk/id/local-authority-district/23UB,Cheltenham Borough Council,Window & Door Renewals,14058624,18010183,Nationwide Windows Limited,C1107-CAH017,Building Works,09/02/2018,"75,733.49 "
http://statistics.data.gov.uk/id/local-authority-district/23UB,Cheltenham Borough Council,Window & Door Renewals,14058625,18010184,Nationwide Windows Limited,C1107-CAH017,Building Works,16/02/2018,"30,599.99 "
http://statistics.data.gov.uk/id/local-authority-district/23UB,Cheltenham Borough Council,Window & Door Renewals,14058625,18010184,Nationwide Windows Limited,C1107-CAH017,Building Works,16/02/2018,"-30,599.99 "
http://statistics.data.gov.uk/id/local-authority-district/23UB,Cheltenham Borough Council,Window & Door Renewals,14058625,18010184,Nationwide Windows Limited,C1107-CAH017,Building Works,16/02/2018,"30,599.99 "
http://statistics.data.gov.uk/id/local-authority-district/23UB,Cheltenham Borough Council,Window & Door Renewals,14058626,18010185,Nationwide Windows Limited,C1107-CAH017,Building Works,09/02/2018,"14,206.03 "
http://statistics.data.gov.uk/id/local-authority-district/23UB,Cheltenham Borough Council,Window & Door Renewals,14058626,18010185,Nationwide Windows Limited,C1107-CAH017,Building Works,09/02/2018,"-14,206.03 "
http://statistics.data.gov.uk/id/local-authority-district/23UB,Cheltenham Borough Council,Window & Door Renewals,14058626,18010185,Nationwide Windows Limited,C1107-CAH017,Building Works,09/02/2018,"14,206.03 "
http://statistics.data.gov.uk/id/local-authority-district/23UB,Cheltenham Borough Council,Window & Door Renewals,14058627,18010186,Nationwide Windows Limited,C1107-CAH017,Building Works,09/02/2018,"84,597.88 "
http://statistics.data.gov.uk/id/local-authority-district/23UB,Cheltenham Borough Council,Window & Door Renewals,14058627,18010186,Nationwide Windows Limited,C1107-CAH017,Building Works,09/02/2018,"84,597.88 "
http://statistics.data.gov.uk/id/local-authority-district/23UB,Cheltenham Borough Council,Window & Door Renewals,14058627,18010186,Nationwide Windows Limited,C1107-CAH017,Building Works,09/02/2018,"-84,597.88 "
http://statistics.data.gov.uk/id/local-authority-district/23UB,Cheltenham Borough Council,Window & Door Renewals,14058628,18010187,Nationwide Windows Limited,C1107-CAH017,Building Works,16/02/2018,"120,065.73 "
http://statistics.data.gov.uk/id/local-authority-district/23UB,Cheltenham Borough Council,Window & Door Renewals,14058628,18010187,Nationwide Windows Limited,C1107-CAH017,Building Works,16/02/2018,"-120,065.73 "
http://statistics.data.gov.uk/id/local-authority-district/23UB,Cheltenham Borough Council,Window & Door Renewals,14058628,18010187,Nationwide Windows Limited,C1107-CAH017,Building Works,16/02/2018,"120,065.73 "
http://statistics.data.gov.uk/id/local-authority-district/23UB,Cheltenham Borough Council,Trees,14058649,128,Nature First Limited,R2070-PLP006,Tree Work,09/02/2018,"2,700.00 "
http://statistics.data.gov.uk/id/local-authority-district/23UB,Cheltenham Borough Council,Allotments,14058789,311017,REDACTED,R2076-OPS004,Grounds Maintenance - Non Contract,23/02/2018,"1,397.93 "
http://statistics.data.gov.uk/id/local-authority-district/23UB,Cheltenham Borough Council,Public Art,14058809,NW_KGV_GV2414,REDACTED,R4411-PUB101,Consultancy Fees,16/02/2018,675.00 
http://statistics.data.gov.uk/id/local-authority-district/23UB,Cheltenham Borough Council,Repairs and Maintenance,14058370,11687,NKS Contracts (Central) Limited,R2083-HRA100,R&M of Build - Routine,09/02/2018,"24,458.85 "
http://statistics.data.gov.uk/id/local-authority-district/23UB,Cheltenham Borough Council,Flood Risk Management,14058546,142476,Onsite Central Limited (Worcester),R5001-FRM101,TPP - Major External Contractors,09/02/2018,"3,750.00 "
http://statistics.data.gov.uk/id/local-authority-district/23UB,Cheltenham Borough Council,Repairs and Maintenance,14058720,O0422444,Orbis Protect Limited,R2012-HRA100,R & M of Build Standby and Call Out,09/02/2018,794.30 
http://statistics.data.gov.uk/id/local-authority-district/23UB,Cheltenham Borough Council,Environmental Health General,14058930,213318,Osborne Richardson Limited,R1100-REG001,Agency Staff,23/02/2018,"1,330.00 "
http://statistics.data.gov.uk/id/local-authority-district/23UB,Cheltenham Borough Council,Cheltenham Municipal Offices,14058918,RTS 11070429,Otis Limited,R2010-ADB101,R & M of Plant Lifts,23/02/2018,517.50 
http://statistics.data.gov.uk/id/local-authority-district/23UB,Cheltenham Borough Council,Planning Policy,14058142,1007861,Ove Arup & Partners Limited,R4400-PLP001,Services - Professional Fees,09/02/2018,"10,302.60 "
http://statistics.data.gov.uk/id/local-authority-district/23UB,Cheltenham Borough Council,Joint Core Strategy,14058339,1009434,Ove Arup & Partners Limited,R4400-PLP101,Services - Professional Fees,09/02/2018,"2,000.00 "
http://statistics.data.gov.uk/id/local-authority-district/23UB,Cheltenham Borough Council,Cheltenham Depot,14058554,59798,P & R Heating Limited,R2004-ADB103,R & M of Build Programmed,09/02/2018,"8,019.00 "
http://statistics.data.gov.uk/id/local-authority-district/23UB,Cheltenham Borough Council,Public Conveniences,14058557,59871,P & R Heating Limited,R2002-REG019,R & M of Build Due Vandalism,09/02/2018,895.78 
http://statistics.data.gov.uk/id/local-authority-district/23UB,Cheltenham Borough Council,Cheltenham Depot,14058263,60158,P & R Heating Limited,R2008-ADB103,R & M of Build - Reactive Repairs,02/02/2018,"5,654.00 "
http://statistics.data.gov.uk/id/local-authority-district/23UB,Cheltenham Borough Council,Recreation Centre Repairs & Maintenance,14058401,60206,P & R Heating Limited,R2008-REC111,R & M of Build - Reactive Repairs,09/02/2018,748.50 
http://statistics.data.gov.uk/id/local-authority-district/23UB,Cheltenham Borough Council,Pittville Pump Room Repairs & Maintenance,14058353,60301,P & R Heating Limited,R2080-CUL113,Mechanical Services,09/02/2018,884.40 
http://statistics.data.gov.uk/id/local-authority-district/23UB,Cheltenham Borough Council,Cheltenham Municipal Offices,14058386,60310,P & R Heating Limited,R2008-ADB101,R & M of Build - Reactive Repairs,09/02/2018,684.53 
http://statistics.data.gov.uk/id/local-authority-district/23UB,Cheltenham Borough Council,Pittville Pump Room Repairs & Maintenance,14058385,60311,P & R Heating Limited,R2080-CUL113,Mechanical Services,09/02/2018,684.53 
http://statistics.data.gov.uk/id/local-authority-district/23UB,Cheltenham Borough Council,Art Gallery & Museum Repairs & Maintenance,14058575,60323,P & R Heating Limited,R2008-CUL117,R & M of Build - Reactive Repairs,09/02/2018,696.95 
http://statistics.data.gov.uk/id/local-authority-district/23UB,Cheltenham Borough Council,Town Hall Repairs & Maintenance,14058568,60334,P & R Heating Limited,R2008-CUL112,R & M of Build - Reactive Repairs,09/02/2018,"1,088.02 "
http://statistics.data.gov.uk/id/local-authority-district/23UB,Cheltenham Borough Council,Town Hall Repairs & Maintenance,14058611,60336,P & R Heating Limited,R2008-CUL112,R & M of Build - Reactive Repairs,09/02/2018,"1,803.00 "
http://statistics.data.gov.uk/id/local-authority-district/23UB,Cheltenham Borough Council,Town Hall Repairs & Maintenance,14058611,60336,P & R Heating Limited,R2008-CUL112,R & M of Build - Reactive Repairs,09/02/2018,535.58 
http://statistics.data.gov.uk/id/local-authority-district/23UB,Cheltenham Borough Council,Art Gallery & Museum Repairs & Maintenance,14058555,60337,P & R Heating Limited,R2008-CUL117,R & M of Build - Reactive Repairs,09/02/2018,"1,753.94 "
http://statistics.data.gov.uk/id/local-authority-district/23UB,Cheltenham Borough Council,Income and Expenditure on Investment Properties and Changes in Their Fair Value,14058898,60338,P & R Heating Limited,R2004-FIE040,R & M of Build Programmed,23/02/2018,"2,578.50 "
http://statistics.data.gov.uk/id/local-authority-district/23UB,Cheltenham Borough Council,Income and Expenditure on Investment Properties and Changes in Their Fair Value,14058741,60374,P & R Heating Limited,R2004-FIE040,R & M of Build Programmed,09/02/2018,"1,050.00 "
http://statistics.data.gov.uk/id/local-authority-district/23UB,Cheltenham Borough Council,Pittville Pump Room Repairs & Maintenance,14058882,60388,P & R Heating Limited,R2083-CUL113,R&M of Build - Routine,23/02/2018,"1,679.00 "
http://statistics.data.gov.uk/id/local-authority-district/23UB,Cheltenham Borough Council,Town Hall Repairs & Maintenance,14058866,60414,P & R Heating Limited,R2080-CUL112,Mechanical Services,23/02/2018,593.68 
http://statistics.data.gov.uk/id/local-authority-district/23UB,Cheltenham Borough Council,Cheltenham Municipal Offices,14058867,60415,P & R Heating Limited,R2080-ADB101,Mechanical Services,23/02/2018,660.10 
http://statistics.data.gov.uk/id/local-authority-district/23UB,Cheltenham Borough Council,Prince of Wales Stadium Repairs & Maintenance,14058870,60418,P & R Heating Limited,R2080-REC112,Mechanical Services,23/02/2018,"1,237.68 "
http://statistics.data.gov.uk/id/local-authority-district/23UB,Cheltenham Borough Council,Cheltenham Depot,14058874,60422,P & R Heating Limited,R2080-ADB103,Mechanical Services,23/02/2018,694.32 
http://statistics.data.gov.uk/id/local-authority-district/23UB,Cheltenham Borough Council,Car Parks - Off Street Operations,14058375,UK104310,Parkeon Limited,R4401-CPK001,Services - Fees and Charges,09/02/2018,"2,543.56 "
http://statistics.data.gov.uk/id/local-authority-district/23UB,Cheltenham Borough Council,Car Parks - Off Street Operations,14058255,8457,Patrol,R4401-CPK001,Services - Fees and Charges,02/02/2018,582.05 
http://statistics.data.gov.uk/id/local-authority-district/23UB,Cheltenham Borough Council,Development costs - Swindon Road,14059002,16-5564 AC,PMP CONSULTANTS LIMITED,C1107-CAH050,Building Works,23/02/2018,605.70 
http://statistics.data.gov.uk/id/local-authority-district/23UB,Cheltenham Borough Council,Recreation Centre Repairs & Maintenance,14058388,22701,R F Gardiner Limited T/as Gardiners,R2004-REC111,R & M of Build Programmed,09/02/2018,728.65 
http://statistics.data.gov.uk/id/local-authority-district/23UB,Cheltenham Borough Council,Recreation Centre Repairs & Maintenance,14058556,22709,R F Gardiner Limited T/as Gardiners,R2004-REC111,R & M of Build Programmed,09/02/2018,"3,370.00 "
http://statistics.data.gov.uk/id/local-authority-district/23UB,Cheltenham Borough Council,Printing Services,14058943,101040620,Ricoh UK Limited,R4304-SUP022,Photocopier Operating Lease,23/02/2018,"5,477.69 "
http://statistics.data.gov.uk/id/local-authority-district/23UB,Cheltenham Borough Council,Registration of Electors,14058276,9055859911,Royal Mail,R4521-ELE001,Postages - franking machine,02/02/2018,"2,104.60 "
http://statistics.data.gov.uk/id/local-authority-district/23UB,Cheltenham Borough Council,Council Tax Collection,14058276,9055859911,Royal Mail,R4521-LTC001,Postages - franking machine,02/02/2018,597.25 
http://statistics.data.gov.uk/id/local-authority-district/23UB,Cheltenham Borough Council,Registration of Electors,14058277,9055898851,Royal Mail,R4521-ELE001,Postages - franking machine,02/02/2018,"1,261.89 "
http://statistics.data.gov.uk/id/local-authority-district/23UB,Cheltenham Borough Council,Registration of Electors,14058536,9055939683,Royal Mail,R4521-ELE001,Postages - franking machine,16/02/2018,572.82 
http://statistics.data.gov.uk/id/local-authority-district/23UB,Cheltenham Borough Council,Repairs and Maintenance,14058549,1091,SAS EPC,R2018-HRA100,R & M of Build Voids Energy Performance Certificates,16/02/2018,540.00 
http://statistics.data.gov.uk/id/local-authority-district/23UB,Cheltenham Borough Council,Car Park Income Collection,14058823,656986,Security Plus+ Limited,R4435-CPK002,Cash Collection Contract,16/02/2018,801.20 
http://statistics.data.gov.uk/id/local-authority-district/23UB,Cheltenham Borough Council,Environmental Health General,14058731,00809-14307962/CI,Selim Smith & Co Funeral Directors (Dignity Funerals Limited),R4433-REG001,Burial Fees - National Assitance Act,16/02/2018,"1,011.00 "
http://statistics.data.gov.uk/id/local-authority-district/23UB,Cheltenham Borough Council,Environmental Health General,14058733,00809-14419251/CI,Selim Smith & Co Funeral Directors (Dignity Funerals Limited),R4433-REG001,Burial Fees - National Assitance Act,23/02/2018,"1,095.00 "
http://statistics.data.gov.uk/id/local-authority-district/23UB,Cheltenham Borough Council,Environmental Health General,14058732,00809-14455350/CI,Selim Smith & Co Funeral Directors (Dignity Funerals Limited),R4433-REG001,Burial Fees - National Assitance Act,16/02/2018,"1,302.50 "
http://statistics.data.gov.uk/id/local-authority-district/23UB,Cheltenham Borough Council,Environmental Health General,14058734,00809-14474688/CI,Selim Smith & Co Funeral Directors (Dignity Funerals Limited),R4433-REG001,Burial Fees - National Assitance Act,23/02/2018,"1,486.50 "
http://statistics.data.gov.uk/id/local-authority-district/23UB,Cheltenham Borough Council,Environmental Health General,14058735,00809-14558179/CI,Selim Smith & Co Funeral Directors (Dignity Funerals Limited),R4433-REG001,Burial Fees - National Assitance Act,23/02/2018,"1,466.50 "
http://statistics.data.gov.uk/id/local-authority-district/23UB,Cheltenham Borough Council,Recreation Centre Repairs & Maintenance,14058480,421142467,Severn Trent Water,R2402-REC111,Sewerage and Environmental Services,09/02/2018,"5,127.62 "
http://statistics.data.gov.uk/id/local-authority-district/23UB,Cheltenham Borough Council,Supervision and Management,14058273,Chelt 01,Sigma Retail Solutions Ltd,R2076-HRA110,Grounds Maintenance - Non Contract,02/02/2018,"2,209.50 "
http://statistics.data.gov.uk/id/local-authority-district/23UB,Cheltenham Borough Council,Bulking Facility,14058499,122016,South Wales Wood Recycling Ltd,R5005-RYC008,TPP - Minor Contract Fees,09/02/2018,"1,235.50 "
http://statistics.data.gov.uk/id/local-authority-district/23UB,Cheltenham Borough Council,Bulking Facility,14058500,122072,South Wales Wood Recycling Ltd,R5005-RYC008,TPP - Minor Contract Fees,09/02/2018,631.40 
http://statistics.data.gov.uk/id/local-authority-district/23UB,Cheltenham Borough Council,Bulking Facility,14058501,122123,South Wales Wood Recycling Ltd,R5005-RYC008,TPP - Minor Contract Fees,02/02/2018,555.80 
http://statistics.data.gov.uk/id/local-authority-district/23UB,Cheltenham Borough Council,Bulking Facility,14058648,122264,South Wales Wood Recycling Ltd,R5005-RYC008,TPP - Minor Contract Fees,09/02/2018,544.60 
http://statistics.data.gov.uk/id/local-authority-district/23UB,Cheltenham Borough Council,Bulking Facility,14058907,122366,South Wales Wood Recycling Ltd,R5005-RYC008,TPP - Minor Contract Fees,23/02/2018,"1,090.60 "
http://statistics.data.gov.uk/id/local-authority-district/23UB,Cheltenham Borough Council,Community Welfare Grants,14058429,Com Pride 240118,ST Pauls Road Area Residents Association (SPRA),R6280-GBD001,Grants,02/02/2018,600.00 
http://statistics.data.gov.uk/id/local-authority-district/23UB,Cheltenham Borough Council,High Street Public Realm Improvements,14058508,TSP-11464,Stilwell Limited T/A The Stilwell Partnership,C1105-CAP205,Design Services,02/02/2018,"13,025.00 "
http://statistics.data.gov.uk/id/local-authority-district/23UB,Cheltenham Borough Council,Allotments,14058284,16465,Stokes & Sons Services Limited,R4010-OPS004,Materials - Other Materials,02/02/2018,626.60 
http://statistics.data.gov.uk/id/local-authority-district/23UB,Cheltenham Borough Council,Parks & Gardens Operations,14058812,4987,Streetmaster (South Wales) Limited,R2500-OPS001,Fixtures and Fittings - Purchases,23/02/2018,"1,717.00 "
http://statistics.data.gov.uk/id/local-authority-district/23UB,Cheltenham Borough Council,Warm & well grants,14058729,401391631,Stroud District Council,C5000-CAP224,Grants,16/02/2018,"5,000.00 "
http://statistics.data.gov.uk/id/local-authority-district/23UB,Cheltenham Borough Council,Regulatory & Environmental Services Transformation,14058791,00VC036,Successful Stays,R4400-SUP140,Services - Professional Fees,16/02/2018,"1,455.00 "
http://statistics.data.gov.uk/id/local-authority-district/23UB,Cheltenham Borough Council,Income and Expenditure on Investment Properties and Changes in Their Fair Value,14058406,6172,System Six Design & Build,R2081-FIE040,Roof Repairs,09/02/2018,562.21 
http://statistics.data.gov.uk/id/local-authority-district/23UB,Cheltenham Borough Council,Legal,14058334,DEBT106095,Tewkesbury Borough Council,R4400-SUP004,Services - Professional Fees,02/02/2018,"2,223.20 "
http://statistics.data.gov.uk/id/local-authority-district/23UB,Cheltenham Borough Council,Development Control - Applications,14058333,DEBT106103,Tewkesbury Borough Council,R4420-DEV001,Legal Expenses And Court Costs,09/02/2018,"10,000.00 "
http://statistics.data.gov.uk/id/local-authority-district/23UB,Cheltenham Borough Council,Income and Expenditure on Investment Properties and Changes in Their Fair Value,14058318,DEBT106104,Tewkesbury Borough Council,R4400-FIE040,Services - Professional Fees,02/02/2018,"1,500.00 "
http://statistics.data.gov.uk/id/local-authority-district/23UB,Cheltenham Borough Council,Joint Core Strategy,14058505,DEBT106124,Tewkesbury Borough Council,R4400-PLP101,Services - Professional Fees,09/02/2018,"4,040.00 "
http://statistics.data.gov.uk/id/local-authority-district/23UB,Cheltenham Borough Council,Housing Benefit Administration,14058808,DEBT106140,Tewkesbury Borough Council,R4420-HBA001,Legal Expenses And Court Costs,16/02/2018,"1,250.00 "
http://statistics.data.gov.uk/id/local-authority-district/23UB,Cheltenham Borough Council,Housing Benefit Administration,14058808,DEBT106140,Tewkesbury Borough Council,R4420-HBA001,Legal Expenses And Court Costs,16/02/2018,563.00 
http://statistics.data.gov.uk/id/local-authority-district/23UB,Cheltenham Borough Council,Repairs and Maintenance,14058841,DEBT106152,Tewkesbury Borough Council,R2040-HRA100,R & M of Build Central Heating,16/02/2018,"1,540.00 "
http://statistics.data.gov.uk/id/local-authority-district/23UB,Cheltenham Borough Council,Supervision and Management,14058955,DEBT106163,Tewkesbury Borough Council,R4420-HRA110,Legal Expenses And Court Costs,23/02/2018,"6,388.00 "
http://statistics.data.gov.uk/id/local-authority-district/23UB,Cheltenham Borough Council,Joint Core Strategy,14058922,DEBT106166,Tewkesbury Borough Council,R4400-PLP101,Services - Professional Fees,23/02/2018,"5,050.00 "
http://statistics.data.gov.uk/id/local-authority-district/23UB,Cheltenham Borough Council,Legal,14058924,DEBT106170,Tewkesbury Borough Council,R4401-SUP004,Services - Fees and Charges,23/02/2018,"9,913.00 "
http://statistics.data.gov.uk/id/local-authority-district/23UB,Cheltenham Borough Council,Legal,14058923,DEBT106172,Tewkesbury Borough Council,R4401-SUP004,Services - Fees and Charges,23/02/2018,"113,852.30 "
http://statistics.data.gov.uk/id/local-authority-district/23UB,Cheltenham Borough Council,Cultural - Service Management and Support Services,14058450,70043676,The Cheltenham Trust,R6280-CSM001,Grants,16/02/2018,"11,308.00 "
http://statistics.data.gov.uk/id/local-authority-district/23UB,Cheltenham Borough Council,Cultural - Service Management and Support Services,14058495,70043685,The Cheltenham Trust,R5001-CSM001,TPP - Major External Contractors,02/02/2018,"17,210.44 "
http://statistics.data.gov.uk/id/local-authority-district/23UB,Cheltenham Borough Council,Cultural - Service Management and Support Services,14058925,70044593,The Cheltenham Trust,R5001-CSM001,TPP - Major External Contractors,23/02/2018,"54,038.33 "
http://statistics.data.gov.uk/id/local-authority-district/23UB,Cheltenham Borough Council,Community Alarms,14058804,82574,The Key Safe Company,R4000-SPP002,Equipment Purchase,16/02/2018,565.44 
http://statistics.data.gov.uk/id/local-authority-district/23UB,Cheltenham Borough Council,General Fund Balance Sheet,14058655,850028050229,The Midcounties Co-operative,B6170-BAL100,Short Term Revenue Creditors (incl RIA) - Other entities and individuals,09/02/2018,"1,264.00 "
http://statistics.data.gov.uk/id/local-authority-district/23UB,Cheltenham Borough Council,Big Local Project,14058543,3242,The Rock,R6280-HLD131,Grants,09/02/2018,"1,000.00 "
http://statistics.data.gov.uk/id/local-authority-district/23UB,Cheltenham Borough Council,Community Welfare Grants,14058428,3243,The Rock,R6280-GBD001,Grants,02/02/2018,"4,068.04 "
http://statistics.data.gov.uk/id/local-authority-district/23UB,Cheltenham Borough Council,World War 1 Commemoration Projects,14058987,3244,The Rock,R4401-CUL003,Services - Fees and Charges,23/02/2018,"4,054.43 "
http://statistics.data.gov.uk/id/local-authority-district/23UB,Cheltenham Borough Council,Adaptations for the Disabled (CBC),14058664,REDACTED,The Surveying Practice - Client Account,C1107-CAH028,Building Works,09/02/2018,"6,643.23 "
http://statistics.data.gov.uk/id/local-authority-district/23UB,Cheltenham Borough Council,Disabled Facility Grants,14058814,REDACTED,The Surveying Practice - Client Account,C5000-CAP221,Grants,16/02/2018,"6,732.30 "
http://statistics.data.gov.uk/id/local-authority-district/23UB,Cheltenham Borough Council,Disabled Facility Grants,14058614,REDACTED,The Surveying Practice - Client Account,C5000-CAP221,Grants,09/02/2018,"7,581.31 "
http://statistics.data.gov.uk/id/local-authority-district/23UB,Cheltenham Borough Council,Supervision and Management,14058485,INV/50316209,Tunstall Healthcare (UK) Limited,R4003-HRA110,Tools & Equipment - R & M,09/02/2018,616.77 
http://statistics.data.gov.uk/id/local-authority-district/23UB,Cheltenham Borough Council,Supervision and Management,14058921,6001751X,Ubico Limited,R2071-HRA110,Open Spaces and Grassed Areas,23/02/2018,"26,448.00 "
http://statistics.data.gov.uk/id/local-authority-district/23UB,Cheltenham Borough Council,Parks & Gardens Operations,14058921,6001751X,Ubico Limited,R5001-OPS001,TPP - Major External Contractors,23/02/2018,"43,539.00 "
http://statistics.data.gov.uk/id/local-authority-district/23UB,Cheltenham Borough Council,Sports & Open Spaces Operations,14058921,6001751X,Ubico Limited,R5001-OPS002,TPP - Major External Contractors,23/02/2018,"52,798.00 "
http://statistics.data.gov.uk/id/local-authority-district/23UB,Cheltenham Borough Council,Arle Road Nursery Operations,14058921,6001751X,Ubico Limited,R5001-OPS101,TPP - Major External Contractors,23/02/2018,"14,249.00 "
http://statistics.data.gov.uk/id/local-authority-district/23UB,Cheltenham Borough Council,Car Parks - Off Street Operations,14058921,6001751X,Ubico Limited,R5001-CPK001,TPP - Major External Contractors,23/02/2018,"7,767.00 "
http://statistics.data.gov.uk/id/local-authority-district/23UB,Cheltenham Borough Council,Highways Agency Verges & Trees,14058921,6001751X,Ubico Limited,R5001-ESR001,TPP - Major External Contractors,23/02/2018,"25,141.00 "
http://statistics.data.gov.uk/id/local-authority-district/23UB,Cheltenham Borough Council,Trade Waste,14058921,6001751X,Ubico Limited,R5001-TRW001,TPP - Major External Contractors,23/02/2018,"47,000.00 "
http://statistics.data.gov.uk/id/local-authority-district/23UB,Cheltenham Borough Council,Household Waste,14058921,6001751X,Ubico Limited,R5001-WST001,TPP - Major External Contractors,23/02/2018,"116,142.00 "
http://statistics.data.gov.uk/id/local-authority-district/23UB,Cheltenham Borough Council,Recycling Collection Schemes,14058921,6001751X,Ubico Limited,R5001-RYC006,TPP - Major External Contractors,23/02/2018,"129,440.00 "
http://statistics.data.gov.uk/id/local-authority-district/23UB,Cheltenham Borough Council,Bring Sites,14058921,6001751X,Ubico Limited,R5001-RYC005,TPP - Major External Contractors,23/02/2018,"13,481.00 "
http://statistics.data.gov.uk/id/local-authority-district/23UB,Cheltenham Borough Council,Recycling Centres,14058921,6001751X,Ubico Limited,R5001-RYC004,TPP - Major External Contractors,23/02/2018,"39,142.00 "
http://statistics.data.gov.uk/id/local-authority-district/23UB,Cheltenham Borough Council,Bulking Facility,14058921,6001751X,Ubico Limited,R5001-RYC008,TPP - Major External Contractors,23/02/2018,"29,404.00 "
http://statistics.data.gov.uk/id/local-authority-district/23UB,Cheltenham Borough Council,Street Cleaning,14058921,6001751X,Ubico Limited,R5001-STC001,TPP - Major External Contractors,23/02/2018,"66,390.00 "
http://statistics.data.gov.uk/id/local-authority-district/23UB,Cheltenham Borough Council,Green Waste,14058921,6001751X,Ubico Limited,R5001-RYC002,TPP - Major External Contractors,23/02/2018,"24,758.00 "
http://statistics.data.gov.uk/id/local-authority-district/23UB,Cheltenham Borough Council,Public Conveniences,14058921,6001751X,Ubico Limited,R5001-REG019,TPP - Major External Contractors,23/02/2018,"6,305.00 "
http://statistics.data.gov.uk/id/local-authority-district/23UB,Cheltenham Borough Council,Parks & Gardens Operations,14058270,1520 - 416,Urban Recreation Ltd,R2075-OPS001,Grounds Maintenance - Contract,02/02/2018,"3,285.00 "
http://statistics.data.gov.uk/id/local-authority-district/23UB,Cheltenham Borough Council,Parks & Gardens Operations,14058270,1520 - 416,Urban Recreation Ltd,R2075-OPS001,Grounds Maintenance - Contract,02/02/2018,"-3,285.00 "
http://statistics.data.gov.uk/id/local-authority-district/23UB,Cheltenham Borough Council,Parks & Gardens Operations,14058270,1520 - 416,Urban Recreation Ltd,R2075-OPS001,Grounds Maintenance - Contract,02/02/2018,980.00 
http://statistics.data.gov.uk/id/local-authority-district/23UB,Cheltenham Borough Council,Parks & Gardens Operations,14058270,1520 - 416,Urban Recreation Ltd,R2075-OPS001,Grounds Maintenance - Contract,02/02/2018,"2,305.00 "
http://statistics.data.gov.uk/id/local-authority-district/23UB,Cheltenham Borough Council,Car Parks - Off Street Operations,14058778,CHL00297,Verrus (UK) Limited (Pay By Phone),R4401-CPK001,Services - Fees and Charges,16/02/2018,"5,022.60 "
http://statistics.data.gov.uk/id/local-authority-district/23UB,Cheltenham Borough Council,Bulky Household Waste,14058518,18-Jan,Vision 21,R4401-WST004,Services - Fees and Charges,16/02/2018,"3,593.75 "
http://statistics.data.gov.uk/id/local-authority-district/23UB,Cheltenham Borough Council,Internal Improvements - Communal,14058618,INV-3108,Vision Accendo Limited,C1107-CAH035,Building Works,09/02/2018,"31,248.85 "
http://statistics.data.gov.uk/id/local-authority-district/23UB,Cheltenham Borough Council,Internal Improvements - Communal,14058618,INV-3108,Vision Accendo Limited,C1107-CAH035,Building Works,09/02/2018,"-31,248.85 "
http://statistics.data.gov.uk/id/local-authority-district/23UB,Cheltenham Borough Council,Internal Improvements - Communal,14058618,INV-3108,Vision Accendo Limited,C1107-CAH035,Building Works,09/02/2018,"31,248.85 "
http://statistics.data.gov.uk/id/local-authority-district/23UB,Cheltenham Borough Council,Prince of Wales Stadium Repairs & Maintenance,14058750,stw-INV00938259,Water Plus Select Limited,R2401-REC112,Water Services - Metered,09/02/2018,917.27 
http://statistics.data.gov.uk/id/local-authority-district/23UB,Cheltenham Borough Council,Arle Road Nursery Repairs Maintenance,14058748,stw-INV00991992,Water Plus Select Limited,R2401-OPS111,Water Services - Metered,09/02/2018,"2,042.67 "
http://statistics.data.gov.uk/id/local-authority-district/23UB,Cheltenham Borough Council,Shopmobility,14058509,CH3200917x,Wheel-Ability Servicing,R4003-PUT102,Tools & Equipment - R & M,02/02/2018,580.00 
http://statistics.data.gov.uk/id/local-authority-district/23UB,Cheltenham Borough Council,Crematorium Scheme: New Build,14058249,60000506,Willmott Dixon Construction Limited,C1100-CAP601,Construction,02/02/2018,"410,230.96 "
http://statistics.data.gov.uk/id/local-authority-district/23UB,Cheltenham Borough Council,Crematorium Scheme: New Build,14058249,60000506,Willmott Dixon Construction Limited,C1100-CAP601,Construction,02/02/2018,"-410,230.96 "
http://statistics.data.gov.uk/id/local-authority-district/23UB,Cheltenham Borough Council,Crematorium Scheme: New Build,14058249,60000506,Willmott Dixon Construction Limited,C1100-CAP601,Construction,02/02/2018,"410,230.96 "
http://statistics.data.gov.uk/id/local-authority-district/23UB,Cheltenham Borough Council,"Cemetery, Crematorium and Churchyards",14058332,684,Woodcraft UK,R4011-CCM001,Goods For Resale,02/02/2018,538.00 
http://statistics.data.gov.uk/id/local-authority-district/23UB,Cheltenham Borough Council,Rent Control,14058666,RENT REFUND (REDACTED),REDACTED,R9910-HRA900,Refund of Overpaid Rent,09/02/2018,"3,225.80 "
http://statistics.data.gov.uk/id/local-authority-district/23UB,Cheltenham Borough Council,Allotments,14058993,SX-8624,Complete Weed Control (South & Central Wales) Ltd,R2075-OPS004,Grounds Maintenance - Contract,23/02/2018,675.00 
http://statistics.data.gov.uk/id/local-authority-district/23UB,Cheltenham Borough Council,Cheltenham Business Improvement District (BID) Levy,14058434,BID INV QUADRANGLE,GVA Grimley Client,R8914-HLD160,NNDR refunds,09/02/2018,"2,201.97 "
http://statistics.data.gov.uk/id/local-authority-district/23UB,Cheltenham Borough Council,Rent Control,14058820,RENT REFUND (REDACTED),REDACTED,R9910-HRA900,Refund of Overpaid Rent,16/02/2018,679.43 
http://statistics.data.gov.uk/id/local-authority-district/23UB,Cheltenham Borough Council,Rent Control,14058613,RENT REFUND (REDACTED),REDACTED,R9910-HRA900,Refund of Overpaid Rent,09/02/2018,"1,403.14 "
Bank Transactions,,,,,,,,,
http://statistics.data.gov.uk/id/local-authority-district/23UB,Cheltenham Borough Council,Cheltenham Municipal Offices,10025082,Bank Transactions,WEST MERCIA ENERGY - ELECTRICITY - MUNICIPAL OFFICES,R2100-ADB101,Electricity,13/02/2018,3501.85
http://statistics.data.gov.uk/id/local-authority-district/23UB,Cheltenham Borough Council,Cheltenham Municipal Offices,10025082,Bank Transactions,WEST MERCIA ENERGY - GAS - MUNICIPAL OFFICES,R2101-ADB101,Gas,13/02/2018,2621.78
http://statistics.data.gov.uk/id/local-authority-district/23UB,Cheltenham Borough Council,Custodians,10025127,Bank Transactions,"WATER PLUS DD406002149 - ENVIRONMENTAL MAINTENANCE, SWINDON ROAD, CHELTENHAM GL51 9JZ",R2401-ADB102,Water Services - Metered,23/02/2018,692.55
http://statistics.data.gov.uk/id/local-authority-district/23UB,Cheltenham Borough Council,Cheltenham Depot,10025082,Bank Transactions,WEST MERCIA ENERGY - ELECTRICITY - CENTRAL DEPOT - SWINDON ROAD,R2100-ADB103,Electricity,13/02/2018,4381.93
http://statistics.data.gov.uk/id/local-authority-district/23UB,Cheltenham Borough Council,Cheltenham Depot,10025104,Bank Transactions,WEST MERCIA ENERGY - GAS - CENTRAL DEPOT 31/10/2017-30/11/2017,R2101-ADB103,Gas,19/02/2018,-2563.30
http://statistics.data.gov.uk/id/local-authority-district/23UB,Cheltenham Borough Council,Cheltenham Depot,10025104,Bank Transactions,WEST MERCIA ENERGY - GAS - CENTRAL DEPOT 31/10/2017-31/12/2017,R2101-ADB103,Gas,19/02/2018,3823.66
http://statistics.data.gov.uk/id/local-authority-district/23UB,Cheltenham Borough Council,High Street Public Realm Improvements,10025105,Bank Transactions,Glos County Council - S278 application for Chelt High Street East works,C5000-CAP205,Grants,16/02/2018,1000.00
http://statistics.data.gov.uk/id/local-authority-district/23UB,Cheltenham Borough Council,"Cemetery, Crematorium and Churchyards",10025104,Bank Transactions,WEST MERCIA ENERGY - ELECTRICITY - CEMETERY & CREMATORIUM,R2100-CCM001,Electricity,19/02/2018,598.46
http://statistics.data.gov.uk/id/local-authority-district/23UB,Cheltenham Borough Council,"Cemetery, Crematorium and Churchyards",10025082,Bank Transactions,WEST MERCIA ENERGY - GAS - CEMETERY & CREMATORIUM,R2101-CCM001,Gas,13/02/2018,3795.53
http://statistics.data.gov.uk/id/local-authority-district/23UB,Cheltenham Borough Council,"Cemetery, Crematorium and Churchyards",10025151,Bank Transactions,REDACTED - C4699/C4700,R4400-CCM001,Services - Professional Fees,28/02/2018,5900.00
http://statistics.data.gov.uk/id/local-authority-district/23UB,Cheltenham Borough Council,"Cemetery, Crematorium and Churchyards",10025153,Bank Transactions,REDACTED ,R4400-CCM001,Services - Professional Fees,28/02/2018,-5900.00
http://statistics.data.gov.uk/id/local-authority-district/23UB,Cheltenham Borough Council,CCTV,10025082,Bank Transactions,WEST MERCIA ENERGY - ELECTRICITY - CCTV @ VARIOUS LOCATIONS,R2100-CCT001,Electricity,13/02/2018,542.68
http://statistics.data.gov.uk/id/local-authority-district/23UB,Cheltenham Borough Council,Treasury Management,10025127,Bank Transactions,ARRANGEMENT FEE,R4403-COR006,Bank Charges,23/02/2018,2500.00
http://statistics.data.gov.uk/id/local-authority-district/23UB,Cheltenham Borough Council,Treasury Management,10025087,Bank Transactions,CARDNET - 169118221 - 500221866 SERVICE CHARGES,R4428-COR006,Services - credit card charges,14/02/2018,2468.03
http://statistics.data.gov.uk/id/local-authority-district/23UB,Cheltenham Borough Council,Treasury Management,10025087,Bank Transactions,CARDNET - 169118221 - 500701602 SERVICE CHARGES,R4428-COR006,Services - credit card charges,14/02/2018,929.33
http://statistics.data.gov.uk/id/local-authority-district/23UB,Cheltenham Borough Council,Treasury Management,10025087,Bank Transactions,CARDNET - 500200738 SERVICE CHARGES,R4428-COR006,Services - credit card charges,14/02/2018,2130.30
http://statistics.data.gov.uk/id/local-authority-district/23UB,Cheltenham Borough Council,Car Parks - Off Street Operations,10025082,Bank Transactions,WEST MERCIA ENERGY - ELECTRICITY - CAR PARK - GROSVENOR TERRACE,R2100-CPK001,Electricity,13/02/2018,1619.03
http://statistics.data.gov.uk/id/local-authority-district/23UB,Cheltenham Borough Council,Car Parks - Off Street Operations,10025082,Bank Transactions,WEST MERCIA ENERGY - ELECTRICITY - CAR PARK - REGENT ARCADE,R2100-CPK001,Electricity,13/02/2018,642.22
http://statistics.data.gov.uk/id/local-authority-district/23UB,Cheltenham Borough Council,Car Parks - Off Street Operations,10025125,Bank Transactions,"WATER PLUS - MULTI STOREY CAR PARK, GROSVENOR TERRACE",R2401-CPK001,Water Services - Metered,22/02/2018,15010.46
http://statistics.data.gov.uk/id/local-authority-district/23UB,Cheltenham Borough Council,Car Parks - Off Street Operations,10025125,Bank Transactions,"WATER PLUS - MULTI STOREY CAR PARK, GROSVENOR TERRACE - DRAINAGE CHARGE",R2402-CPK001,Sewerage and Environmental Services,22/02/2018,810.29
http://statistics.data.gov.uk/id/local-authority-district/23UB,Cheltenham Borough Council,Car Parks - Off Street Operations,10025125,Bank Transactions,"WATER PLUS - MULTI STOREY CAR PARK, GROSVENOR TERRACE - SEWERAGE CHARGE",R2402-CPK001,Sewerage and Environmental Services,22/02/2018,10510.04
http://statistics.data.gov.uk/id/local-authority-district/23UB,Cheltenham Borough Council,Car Parks - Off Street Operations,10025116,Bank Transactions,S/LINE K0475632 - INV 11440015,R4428-CPK001,Services - credit card charges,21/02/2018,4051.73
http://statistics.data.gov.uk/id/local-authority-district/23UB,Cheltenham Borough Council,Car Parks - Off Street Operations,10025002,Bank Transactions,BRITISH TELECOM  DDVP31400270Q06301,R4515-CPK001,Comms - Telephone Call Charges,11/01/2018,3461.40
http://statistics.data.gov.uk/id/local-authority-district/23UB,Cheltenham Borough Council,Town Hall Repairs & Maintenance,10025082,Bank Transactions,WEST MERCIA ENERGY - ELECTRICITY - CHELTENHAM TOWN HALL,R2100-CUL112,Electricity,13/02/2018,3795.19
http://statistics.data.gov.uk/id/local-authority-district/23UB,Cheltenham Borough Council,Town Hall Repairs & Maintenance,10025082,Bank Transactions,WEST MERCIA ENERGY - GAS - CHELTENHAM TOWN HALL,R2101-CUL112,Gas,13/02/2018,1698.22
http://statistics.data.gov.uk/id/local-authority-district/23UB,Cheltenham Borough Council,Town Hall Repairs & Maintenance,10025002,Bank Transactions,BRITISH TELECOM  DDVP31400270Q06301,R4515-CUL112,Comms - Telephone Call Charges,11/01/2018,519.60
http://statistics.data.gov.uk/id/local-authority-district/23UB,Cheltenham Borough Council,Pittville Pump Room Repairs & Maintenance,10025082,Bank Transactions,WEST MERCIA ENERGY - ELECTRICITY - PITTVILLE PUMP ROOMS,R2100-CUL113,Electricity,13/02/2018,1078.04
http://statistics.data.gov.uk/id/local-authority-district/23UB,Cheltenham Borough Council,Pittville Pump Room Repairs & Maintenance,10025082,Bank Transactions,WEST MERCIA ENERGY - GAS - PITTVILLE PUMP ROOMS,R2101-CUL113,Gas,13/02/2018,843.01
http://statistics.data.gov.uk/id/local-authority-district/23UB,Cheltenham Borough Council,Art Gallery & Museum Repairs & Maintenance,10025082,Bank Transactions,WEST MERCIA ENERGY - ELECTRICITY - WILSON ART GALLERY & MUSEUM,R2100-CUL117,Electricity,13/02/2018,5352.71
http://statistics.data.gov.uk/id/local-authority-district/23UB,Cheltenham Borough Council,Art Gallery & Museum Repairs & Maintenance,10025082,Bank Transactions,WEST MERCIA ENERGY - GAS - WILSON ART GALLERY & MUSEUM,R2101-CUL117,Gas,13/02/2018,2513.92
http://statistics.data.gov.uk/id/local-authority-district/23UB,Cheltenham Borough Council,Art Gallery & Museum Repairs & Maintenance,10025002,Bank Transactions,BRITISH TELECOM  DDVP31400270Q06301,R4515-CUL117,Comms - Telephone Call Charges,11/01/2018,725.09
http://statistics.data.gov.uk/id/local-authority-district/23UB,Cheltenham Borough Council,Ubico Intercompany Account,10025002,Bank Transactions,BRITISH TELECOM  DDVP31400270Q06301,R4515-HLD102,Comms - Telephone Call Charges,11/01/2018,4512.26
http://statistics.data.gov.uk/id/local-authority-district/23UB,Cheltenham Borough Council,Supervision and Management,10025012,Bank Transactions,OPUS CORPORATE,R2100-HRA110,Electricity,05/02/2018,9470.66
http://statistics.data.gov.uk/id/local-authority-district/23UB,Cheltenham Borough Council,Supervision and Management,10025082,Bank Transactions,WEST MERCIA ENERGY - GAS - COOPERS COURT,R2101-HRA110,Gas,13/02/2018,1178.07
http://statistics.data.gov.uk/id/local-authority-district/23UB,Cheltenham Borough Council,Supervision and Management,10025082,Bank Transactions,WEST MERCIA ENERGY - GAS - GILBERT WARD COURT,R2101-HRA110,Gas,13/02/2018,859.63
http://statistics.data.gov.uk/id/local-authority-district/23UB,Cheltenham Borough Council,Supervision and Management,10025082,Bank Transactions,WEST MERCIA ENERGY - GAS - GOLDFOOT HOUSE,R2101-HRA110,Gas,13/02/2018,1227.02
http://statistics.data.gov.uk/id/local-authority-district/23UB,Cheltenham Borough Council,Supervision and Management,10025082,Bank Transactions,WEST MERCIA ENERGY - GAS - POPES CLOSE,R2101-HRA110,Gas,13/02/2018,853.46
http://statistics.data.gov.uk/id/local-authority-district/23UB,Cheltenham Borough Council,Supervision and Management,10025082,Bank Transactions,WEST MERCIA ENERGY - GAS - WALLACE HOUSE,R2101-HRA110,Gas,13/02/2018,1188.85
http://statistics.data.gov.uk/id/local-authority-district/23UB,Cheltenham Borough Council,Supervision and Management,10025010,Bank Transactions,CBRE CORPORATION,R2205-HRA110,Service Charges,31/10/2017,973.41
http://statistics.data.gov.uk/id/local-authority-district/23UB,Cheltenham Borough Council,Supervision and Management,10025037,Bank Transactions,VODAFONE CORPORATION - 02442783M165666,R4507-HRA110,Comms - Mobile Telephones,06/02/2018,4890.39
http://statistics.data.gov.uk/id/local-authority-district/23UB,Cheltenham Borough Council,Supervision and Management,10025002,Bank Transactions,BRITISH TELECOM  DDVP31400270Q06301,R4515-HRA110,Comms - Telephone Call Charges,11/01/2018,2912.74
http://statistics.data.gov.uk/id/local-authority-district/23UB,Cheltenham Borough Council,Parks & Gardens Operations,10025060,Bank Transactions,PROTECTOR INSUJRANCE - CBC/GM/17/02 P-1-39 AND HIRE VEHILE WR17YKB,R4400-OPS001,Services - Professional Fees,13/02/2018,-1621.86
http://statistics.data.gov.uk/id/local-authority-district/23UB,Cheltenham Borough Council,Sports & Open Spaces Operations,10025125,Bank Transactions,"WATER PLUS - HAYDEN ROAD, ALLOTMENTS, OLD GLOUCESTER ROAD, HAYDEN, CHELTENHAM GL51 OSW",R2401-OPS002,Water Services - Metered,22/02/2018,765.54
http://statistics.data.gov.uk/id/local-authority-district/23UB,Cheltenham Borough Council,Sports & Open Spaces Operations,10025125,Bank Transactions,"WATER PLUS - RON SMITH PAVILION, WELCH ROAD, CHELTENHAM GL61 OEG - DRAINAGE CHARGE",R2402-OPS002,Sewerage and Environmental Services,22/02/2018,561.24
http://statistics.data.gov.uk/id/local-authority-district/23UB,Cheltenham Borough Council,Arle Road Nursery Operations,10025082,Bank Transactions,WEST MERCIA ENERGY - GAS - ARLE NURSERIES,R2101-OPS101,Gas,13/02/2018,1388.38
http://statistics.data.gov.uk/id/local-authority-district/23UB,Cheltenham Borough Council,Recreation Centre Repairs & Maintenance,10025082,Bank Transactions,WEST MERCIA ENERGY - ELECTRICITY - LEISURE CENTRE - TOMMY TAYLORS LANE,R2100-REC111,Electricity,13/02/2018,7299.95
http://statistics.data.gov.uk/id/local-authority-district/23UB,Cheltenham Borough Council,Recreation Centre Repairs & Maintenance,10025082,Bank Transactions,WEST MERCIA ENERGY - GAS - LEISURE CENTRE TOMMYS LANE,R2101-REC111,Gas,13/02/2018,10249.66
http://statistics.data.gov.uk/id/local-authority-district/23UB,Cheltenham Borough Council,Recreation Centre Repairs & Maintenance,10025127,Bank Transactions,"WATER PLUS DD467002027 - CHELTENHAM RECREATION CENTRE, TOMMY TAYLORS, CHELTENHAM GL50 4NR",R2401-REC111,Water Services - Metered,23/02/2018,1885.20
http://statistics.data.gov.uk/id/local-authority-district/23UB,Cheltenham Borough Council,Prince of Wales Stadium Repairs & Maintenance,10025082,Bank Transactions,WEST MERCIA ENERGY - ELECTRICITY - PRINCE OF WALES STADIUM,R2100-REC112,Electricity,13/02/2018,2260.26
http://statistics.data.gov.uk/id/local-authority-district/23UB,Cheltenham Borough Council,Human Resources,10025037,Bank Transactions,VODAFONE CORPORATION - 02442783M165666,R4507-SUP003,Comms - Mobile Telephones,06/02/2018,570.24
http://statistics.data.gov.uk/id/local-authority-district/23UB,Cheltenham Borough Council,Telephones,10025004,Bank Transactions,VIRGIN MEDIA PAYMENTS - 506761601005,R4436-SUP006,CCTV Line Rental,01/02/2018,977.93
http://statistics.data.gov.uk/id/local-authority-district/23UB,Cheltenham Borough Council,Telephones,10025004,Bank Transactions,VIRGIN MEDIA PAYMENTS - 506761601005,R4515-SUP006,Comms - Telephone Call Charges,01/02/2018,1389.04
http://statistics.data.gov.uk/id/local-authority-district/23UB,Cheltenham Borough Council,Telephones,10025004,Bank Transactions,VIRGIN MEDIA PAYMENTS - 510828101501,R4515-SUP006,Comms - Telephone Call Charges,01/02/2018,694.50
http://statistics.data.gov.uk/id/local-authority-district/23UB,Cheltenham Borough Council,Press & PR/Communications,10025037,Bank Transactions,VODAFONE CORPORATION - 02442783M165666,R4507-SUP018,Comms - Mobile Telephones,06/02/2018,569.32
Procurement Cards,,,,,,,,,
http://statistics.data.gov.uk/id/local-authority-district/23UB,Cheltenham Borough Council,"Cemetery, Crematorium and Churchyards",10025137,Procurement Cards,BUSINESS CHARGE CARD - MAY - REDACTED - AMAZON,R4010-CCM001,Materials - Other Materials,31/05/2017,502.52
http://statistics.data.gov.uk/id/local-authority-district/23UB,Cheltenham Borough Council,Cyber Business Park,10025136,Procurement Cards,BUSINESS CHARGE CARD - REDACTED - HOTEL DUVIN,R4317-PLP105,Non Staff Advertising,05/02/2018,649.27
http://statistics.data.gov.uk/id/local-authority-district/23UB,Cheltenham Borough Council,Property Services,10025136,Procurement Cards,BUSINESS CHARGE CARD - REDACTED - RICS SUBS UK CYBS,R4701-SUP025,Subscriptions,05/02/2018,759.00
